bitfinex/quotes_ETHUSD_20250905
["timestamp","ask_amount","ask_price","bid_price","bid_amount"]
[1757083355976,0.025,4301.8,4301.7,3.32466234]
[1757083357207,0.025,4301.8,4301.7,3.75426234]
[1757083357507,0.025,4301.8,4301.7,8.1724885]
[1757083357696,0.025,4301.8,4301.7,3.32466234]
[1757083358006,0.141,4301.8,4301.7,3.32466234]
[1757083358178,0.141,4301.8,4301.5,2.32474061]
[1757083358179,0.141,4301.8,4301.1,0.12]
[1757083358379,0.141,4301.8,4301.6,2.32468078]
[1757083358706,0.141,4301.8,4301.1,0.12]
[1757083358707,1.2102,4301.7,4301.5,1.0]
[1757083358879,4.00871638,4301.6,4301.5,1.0]
[1757083359079,3.53491638,4301.6,4301.5,1.0]
[1757083359282,4.65951638,4301.6,4301.5,1.0]
[1757083359574,9.62251638,4301.6,4301.5,1.0]
[1757083361512,0.908,4301.5,4301.3,0.004]
[1757083361681,0.908,4301.5,4299.8,0.029]
[1757083361682,2.32563547,4299.9,4299.8,0.029]
[1757083362008,7.28758139,4300.0,4299.8,0.029]
[1757083362178,2.32563547,4299.9,4299.8,0.029]
[1757083362579,2.32526274,4300.6,4299.8,0.029]
[1757083362809,0.792,4300.5,4299.8,0.029]
[1757083362984,2.32562674,4300.0,4299.8,0.029]
[1757083363185,2.32552674,4300.2,4299.8,0.029]
[1757083363386,4.66043547,4299.9,4299.8,0.029]
[1757083363609,9.62243547,4299.9,4299.8,0.029]
[1757083363811,10.98853564,4299.9,4299.8,0.029]
[1757083364821,13.98853564,4299.9,4299.8,0.029]
[1757083365043,3.11774365,4299.7,4297.3,1.65978492]
[1757083365314,0.792,4298.8,4297.3,1.65978492]
[1757083365610,13.27614161,4299.2,4297.3,1.65978492]
[1757083365611,0.792,4298.5,4297.3,1.65978492]
[1757083365977,0.792,4298.3,4297.3,1.65978492]
[1757083366208,2.8258,4298.7,4297.3,1.65978492]
[1757083366409,0.792,4298.6,4297.3,1.65978492]
[1757083366707,0.792,4298.4,4297.3,1.65978492]
[1757083366908,4.962,4298.5,4297.3,1.65978492]
[1757083367128,0.792,4298.4,4297.3,1.65978492]
[1757083367432,2.32671769,4297.9,4297.3,1.65978492]
[1757083367929,4.23151769,4297.9,4297.3,1.65978492]
[1757083368128,5.31733441,4297.9,4297.3,1.65978492]
[1757083368315,4.88733441,4297.9,4297.3,1.65978492]
[1757083368826,5.31733441,4297.9,4297.3,1.65978492]
[1757083369326,5.31733441,4297.9,4296.8,0.025]
[1757083369510,0.792,4297.8,4296.8,0.025]
[1757083369712,0.792,4297.2,4296.8,0.025]
[1757083369894,4.962,4297.1,4296.8,0.025]
[1757083370098,2.32720502,4297.0,4296.8,0.025]
[1757083370294,2.32725918,4296.9,4296.8,0.025]
[1757083370531,4.962,4297.1,4296.8,0.025]
[1757083370701,3.45994744,4302.5,4296.8,0.025]
[1757083370702,3.40478,4298.6,4296.8,0.025]
[1757083370901,3.792,4298.4,4296.8,0.4797]
[1757083371124,0.792,4298.4,4296.9,0.02327259]
[1757083371428,4.962,4298.3,4296.8,2.8070038]
[1757083371622,0.116,4297.1,4296.8,0.4797]
[1757083371822,0.116,4297.1,4296.9,0.4547]
[1757083372021,0.116,4297.1,4297.0,2.32720502]
[1757083372224,0.116,4297.7,4297.3,2.32700686]
[1757083372415,0.116,4297.7,4297.4,1.6236]
[1757083372812,0.116,4297.7,4297.5,0.4547]
[1757083373012,4.962,4298.7,4297.6,2.32688011]
[1757083373212,1.714,4299.1,4297.5,1.6236]
[1757083373213,0.116,4298.0,4297.9,2.32671769]
[1757083373436,0.116,4298.5,4297.9,1.85859859]
[1757083373613,0.116,4298.5,4297.8,0.116]
[1757083374018,0.116,4297.9,4297.4,0.4547]
[1757083374209,4.961,4298.5,4297.1,15.6689]
[1757083374605,0.025,4298.8,4297.3,2.32704256]
[1757083374822,0.025,4298.8,4297.2,3.4547]
[1757083375029,5.1599,4298.8,4297.2,3.4547]
[1757083375239,0.792,4298.7,4297.3,2.32703268]
[1757083375647,0.025,4298.8,4297.2,3.4547]
[1757083375853,2.32628469,4298.7,4297.2,3.4547]
[1757083376144,0.025,4298.8,4297.3,1.64687042]
[1757083376309,0.025,4298.8,4297.7,2.32677697]
[1757083376517,0.025,4298.8,4297.9,3.0]
[1757083376819,0.025,4298.8,4298.1,3.0]
[1757083377008,0.025,4298.8,4298.7,2.32628469]
[1757083377539,0.025,4298.8,4298.7,21.44988469]
[1757083377735,0.025,4298.8,4298.7,23.02049006]
[1757083377912,0.025,4298.8,4298.5,2.32639004]
[1757083377913,0.025,4298.8,4298.1,0.1735171]
[1757083378111,0.026,4298.8,4298.6,2.32633611]
[1757083378427,0.026,4298.8,4298.7,2.78098469]
[1757083378930,0.0252,4298.8,4298.7,2.78098469]
[1757083379169,0.0252,4298.8,4298.7,0.4547]
[1757083379526,0.0252,4298.8,4298.2,14.5]
[1757083379731,0.0252,4298.8,4298.0,0.4547]
[1757083380138,0.0252,4298.8,4298.7,2.32628469]
[1757083380693,0.0252,4298.8,4298.7,3.94988469]
[1757083380976,0.0252,4298.8,4298.7,11.90788469]
[1757083381278,0.0252,4298.8,4298.7,13.33130808]
[1757083381428,0.0252,4298.8,4298.7,3.0]
[1757083381632,0.0252,4298.8,4297.9,2.32668409]
[1757083381831,0.0252,4298.8,4297.8,2.1687]
[1757083382069,0.0252,4298.8,4297.3,0.004]
[1757083382070,2.32635804,4298.6,4297.3,0.004]
[1757083382254,0.0252,4298.8,4297.3,0.004]
[1757083382457,1.5428,4298.7,4297.3,0.004]
[1757083382633,1.5428,4298.7,4297.3,2.33102141]
[1757083382832,1.5428,4298.7,4297.3,2.33103519]
[1757083383066,1.5428,4298.7,4297.3,0.004]
[1757083383276,0.792,4298.6,4297.3,0.004]
[1757083383439,1.5428,4298.7,4297.3,0.004]
[1757083383440,0.792,4298.4,4297.3,0.004]
[1757083383870,0.236,4298.5,4297.3,0.004]
[1757083384071,1.1128,4298.7,4297.3,0.004]
[1757083384384,0.0252,4298.8,4298.6,16.7253052]
[1757083384536,0.0252,4298.8,4298.7,25.63118989]
[1757083384737,0.0252,4298.8,4298.7,28.63118989]
[1757083385264,0.0252,4298.8,4298.1,0.4547]
[1757083385438,0.0252,4298.8,4298.0,1.1689]
[1757083385439,0.0252,4298.8,4298.3,2.32645266]
[1757083385647,0.0252,4298.8,4298.1,3.0]
[1757083385840,0.0252,4298.8,4298.2,2.3265553]
[1757083386060,0.0252,4298.8,4298.1,6.28451543]
[1757083386260,2.086,4300.5,4298.1,6.28451543]
[1757083386261,0.36564936,4303.6,4298.7,16.7253052]
[1757083386463,20.0,4307.7,4298.2,4.955]
[1757083386464,4.955,4306.2,4301.8,1.0]
[1757083386680,2.32385201,4303.2,4303.1,16.7253052]
[1757083386883,0.43,4303.2,4303.1,16.7253052]
[1757083387096,0.43,4303.2,4302.3,2.79422283]
[1757083387097,0.43,4303.2,4302.1,16.7253052]
[1757083387371,2.32407025,4302.8,4302.7,16.7253052]
[1757083387568,2.75406804,4302.8,4302.7,16.7253052]
[1757083388283,0.43,4302.8,4302.7,16.7253052]
[1757083388484,18.2681052,4302.8,4300.8,0.60686635]
[1757083388691,18.2681052,4302.8,4298.2,0.568]
[1757083388692,0.792,4301.9,4298.2,0.568]
[1757083388992,5.25681052,4302.7,4299.0,0.69893005]
[1757083388993,2.32606824,4299.1,4299.0,0.69893005]
[1757083389294,3.95827316,4299.1,4297.3,3.004]
[1757083389457,0.461,4299.1,4297.4,0.72258117]
[1757083389653,2.78707205,4299.1,4297.8,0.025]
[1757083389884,0.461,4299.1,4298.0,2.3266222]
[1757083390090,0.461,4299.1,4297.8,0.025]
[1757083390290,0.461,4299.1,4297.8,2.35176462]
[1757083390495,16.7253052,4299.0,4297.8,0.025]
[1757083390791,1.6322,4299.1,4297.8,0.60960581]
[1757083391382,16.7253052,4299.5,4297.8,0.60960581]
[1757083391579,2.32607274,4299.1,4298.2,2.32653657]
[1757083391895,1.6322,4299.8,4297.8,0.60960581]
[1757083392206,1.6322,4299.8,4298.0,0.02326663]
[1757083392207,0.461,4299.8,4298.0,0.02326663]
[1757083392491,5.356,4301.1,4298.5,3.0]
[1757083392492,0.461,4300.7,4298.5,3.0]
[1757083392693,0.461,4300.7,4298.7,3.0]
[1757083392895,1.1712,4301.3,4299.0,0.792]
[1757083393095,4.953,4301.9,4299.2,0.792]
[1757083393393,4.953,4301.9,4300.7,2.32515014]
[1757083393394,2.32472103,4301.6,4300.7,2.32515014]
[1757083393600,1.1712,4301.5,4299.3,0.61644607]
[1757083393896,2.32487852,4301.3,4299.4,2.32586248]
[1757083394198,1.6322,4301.2,4299.7,2.32569165]
[1757083394402,0.116,4299.7,4299.5,14.5]
[1757083394710,0.116,4299.7,4299.6,2.32579774]
[1757083394999,1.6322,4299.6,4298.4,2.3264385]
[1757083395165,1.6322,4299.6,4298.5,0.02326392]
[1757083395367,1.6322,4299.6,4297.8,19.476]
[1757083395696,1.6322,4299.6,4297.9,0.02326717]
[1757083395697,2.32600985,4299.3,4297.9,0.02326717]
[1757083395896,0.461,4299.5,4298.5,2.32636866]
[1757083396194,4.951,4300.3,4298.8,0.025]
[1757083396362,1.1712,4300.3,4299.5,2.32581443]
[1757083396562,0.461,4300.8,4299.5,2.32583507]
[1757083396766,0.461,4300.8,4299.9,2.32562237]
[1757083396996,0.461,4300.8,4300.0,2.32557498]
[1757083397234,0.461,4301.6,4300.0,0.2325575]
[1757083397515,0.461,4301.6,4300.0,4.951]
[1757083397671,2.32513171,4300.9,4300.0,7.27653391]
[1757083398012,2.32496707,4301.2,4300.0,19.451]
[1757083398183,0.461,4301.6,4300.1,2.32548951]
[1757083398379,0.001,4301.8,4300.9,2.32505693]
[1757083398590,0.001,4301.8,4301.0,0.25575609]
[1757083398789,0.001,4301.8,4301.0,0.23250569]
[1757083398989,0.001,4301.8,4300.2,0.02325473]
[1757083399189,1.6322,4301.7,4299.4,3.0]
[1757083399391,2.32552337,4300.2,4299.2,9.32701334]
[1757083399589,1.6322,4301.2,4299.6,0.69894471]
[1757083400014,2.32535247,4300.5,4299.4,7.95]
[1757083400215,2.32526181,4300.6,4299.4,8.64898705]
[1757083400422,1.6322,4301.2,4299.4,8.64898705]
[1757083400720,1.6322,4301.2,4299.5,0.21623223]
[1757083401024,0.001,4301.8,4299.8,2.32568956]
[1757083401322,0.461,4301.7,4299.9,0.21623223]
[1757083401522,2.32502044,4301.1,4300.2,2.32546678]
[1757083401731,2.32497153,4301.2,4300.3,3.0283284]
[1757083402025,2.32497153,4301.2,4300.4,0.21623223]
[1757083402322,2.32497153,4301.2,4300.3,2.81209617]
[1757083402323,0.461,4301.7,4300.5,0.21623223]
[1757083402497,0.001,4301.8,4300.6,0.21623223]
[1757083402695,0.462,4301.8,4300.7,0.21623223]
[1757083403009,0.462,4301.8,4300.8,0.21623223]
[1757083403194,0.462,4301.8,4300.9,0.21623223]
[1757083403396,0.79672,4301.8,4301.0,0.21623223]
[1757083403613,0.79672,4301.8,4301.1,0.21623223]
[1757083403811,2.32525694,4300.6,4300.5,0.21623223]
[1757083404019,2.78625694,4300.6,4300.5,0.21623223]
[1757083404629,2.32521576,4300.7,4300.5,0.21623223]
[1757083404784,2.32521576,4300.7,4300.6,0.21623223]
[1757083405117,2.78621576,4300.7,4300.6,0.21623223]
[1757083405313,0.116,4300.6,4299.6,0.21645583]
[1757083405628,3.3452,4300.5,4298.4,0.69911736]
[1757083405783,3.0,4300.2,4298.4,0.69911736]
[1757083405990,2.32603297,4299.2,4297.9,14.5]
[1757083406299,2.32617646,4298.9,4297.9,14.5]
[1757083406498,2.3259453,4299.4,4298.8,0.24156817]
[1757083406730,2.32589497,4299.5,4298.9,0.21656817]
[1757083407032,2.32599891,4299.3,4299.0,0.21656817]
[1757083407221,2.32558139,4300.0,4299.1,0.21656817]
[1757083407511,2.32596004,4299.3,4299.2,0.21656817]
[1757083408214,3.95816004,4299.3,4299.2,0.21656817]
[1757083408416,2.32617646,4298.9,4298.8,0.025]
[1757083408916,3.95837646,4298.9,4298.8,1e-08]
[1757083409119,3.95837646,4298.9,4297.8,0.025]
[1757083409120,2.32671769,4297.9,4297.8,0.025]
[1757083410398,0.461,4299.0,4297.8,0.025]
[1757083410924,2.3441,4299.0,4297.8,0.025]
[1757083411098,2.3441,4299.0,4297.8,0.24154047]
[1757083411421,1.713,4299.3,4297.9,0.21654047]
[1757083411728,2.32627013,4298.8,4298.0,0.21654047]
[1757083411910,4.03899323,4299.3,4298.1,0.21654047]
[1757083412112,2.32650117,4298.3,4298.2,0.21654047]
[1757083412314,0.461,4298.7,4297.9,0.21654047]
[1757083412512,0.461,4298.7,4298.0,0.21654047]
[1757083412722,0.461,4298.7,4297.8,0.025]
[1757083412723,2.32625335,4298.8,4297.9,0.21654047]
[1757083413028,0.461,4298.9,4297.8,0.025]
[1757083413194,1.35122262,4298.9,4297.8,0.025]
[1757083413395,0.461,4298.9,4297.9,0.21654047]
[1757083413828,2.326429,4298.5,4298.0,0.21654047]
[1757083414035,2.32605495,4299.2,4298.2,2.32651861]
[1757083414234,4.943,4299.6,4298.3,0.21654047]
[1757083414396,2.32605621,4299.2,4298.4,0.21654047]
[1757083414596,4.943,4299.6,4298.5,0.21654047]
[1757083414903,2.78655436,4300.1,4298.6,0.21654047]
[1757083414904,2.3258926,4299.5,4298.6,0.21654047]
[1757083415117,0.461,4300.1,4298.7,2.54282317]
[1757083415319,1.1712,4300.4,4298.8,0.21654047]
[1757083415510,0.116,4299.4,4298.9,0.21654047]
[1757083415704,0.116,4299.4,4299.1,2.32603514]
[1757083415909,0.116,4299.4,4299.2,0.21654047]
[1757083416101,1.714,4300.5,4299.3,0.21654047]
[1757083416437,2.32533817,4300.5,4299.4,2.54241088]
[1757083416733,0.116,4300.1,4299.5,1.77374047]
[1757083417027,0.461,4301.3,4299.9,0.116]
[1757083417028,0.116,4300.7,4299.9,0.116]
[1757083417256,0.116,4300.7,4300.0,0.21654047]
[1757083417429,0.116,4300.7,4300.1,0.21654047]
[1757083417608,0.116,4300.7,4299.9,0.116]
[1757083417609,0.116,4300.7,4300.2,0.21654047]
[1757083417799,0.116,4300.7,4300.3,14.71654047]
[1757083418000,0.116,4300.7,4299.5,5.59700915]
[1757083418001,2.32531101,4300.5,4300.4,0.21654047]
[1757083418197,0.116,4300.0,4299.6,0.21654047]
[1757083418436,0.116,4300.0,4299.7,0.21654047]
[1757083418642,2.32563547,4299.9,4299.8,0.21654047]
[1757083418801,2.32585184,4299.5,4299.4,0.21654047]
[1757083419525,2.32585184,4299.5,4298.6,0.21654047]
[1757083419719,2.32569617,4299.8,4298.7,2.54277328]
[1757083419930,2.32552731,4300.1,4298.8,0.21654047]
[1757083420136,2.32564747,4299.9,4298.9,0.21654047]
[1757083420311,0.4447,4299.8,4299.0,0.21654047]
[1757083420503,2.3259796,4299.3,4299.1,0.21654047]
[1757083420704,2.32590722,4299.4,4299.2,0.21654047]
[1757083420904,2.32586813,4299.5,4299.3,0.21654047]
[1757083421236,2.32586813,4299.5,4299.4,0.21654047]
[1757083421437,2.32593104,4299.4,4298.7,0.21654047]
[1757083421605,5.3837,4300.5,4298.8,0.21654047]
[1757083421801,2.21060448,4300.4,4298.9,0.21654047]
[1757083422026,2.21060448,4300.4,4299.0,0.21654047]
[1757083422218,2.21060448,4300.4,4299.1,0.21654047]
[1757083422423,2.21060448,4300.4,4299.2,0.21654047]
[1757083422424,2.32582885,4299.6,4299.2,0.21654047]
[1757083422627,1.6882,4300.3,4299.3,0.21654047]
[1757083422831,1.2435,4301.0,4299.4,0.23979952]
[1757083423030,6.6252,4301.0,4299.5,0.21654047]
[1757083423210,20.76211329,4301.6,4299.7,2.32574365]
[1757083423211,1.715,4301.6,4299.7,2.32574365]
[1757083423546,2.32482447,4301.4,4299.8,0.21654047]
[1757083423763,0.4447,4301.5,4299.8,0.21654047]
[1757083423764,1.715,4301.6,4300.0,2.32558139]
[1757083423911,2.32477042,4301.5,4300.2,2.32547323]
[1757083424117,2.32477042,4301.5,4300.0,1.347]
[1757083424118,2.32573951,4301.6,4300.5,2.32527974]
[1757083424438,0.001,4301.6,4300.6,2.54178408]
[1757083424626,0.001,4301.6,4301.5,2.32477042]
[1757083424962,0.001,4301.6,4301.5,2.77378793]
[1757083425257,0.001,4301.8,4301.5,7.18021751]
[1757083425458,0.001,4301.8,4301.6,0.21654047]
[1757083425619,0.001,4301.8,4301.7,0.21654047]
[1757083426134,0.001,4301.8,4301.7,1.58678709]
[1757083426335,0.001,4301.8,4301.7,7.47620281]
[1757083426714,0.001,4301.8,4301.7,12.27240281]
[1757083426918,0.001,4301.8,4301.7,11.34547127]
[1757083427283,0.001,4301.8,4301.7,14.45958827]
[1757083427733,0.001,4301.8,4301.7,8.73458827]
[1757083427930,0.001,4301.8,4301.7,13.66658827]
[1757083428315,0.001,4301.8,4301.7,14.45858827]
[1757083428836,0.001,4301.8,4301.7,7.31792593]
[1757083429151,0.001,4301.8,4301.7,10.58765747]
[1757083429352,0.001,4301.8,4301.7,10.05919513]
[1757083429521,0.001,4301.8,4301.7,5.65665747]
[1757083429856,0.001,4301.8,4301.7,0.33199513]
[1757083430163,0.001,4301.8,4301.7,5.046]
[1757083430348,0.001,4301.8,4301.7,8.11705784]
[1757083431259,0.001,4301.8,4301.7,9.91325784]
[1757083431853,0.001,4301.8,4301.7,9.91225784]
[1757083432162,0.001,4301.8,4301.7,9.46305784]
[1757083432479,0.001,4301.8,4301.7,9.91225784]
[1757083433282,0.001,4301.8,4301.7,12.91225784]
[1757083433961,0.4457,4301.8,4301.6,0.004]
[1757083434309,0.001,4301.8,4301.6,0.004]
[1757083434457,0.0002,4301.8,4301.7,2.34790896]
[1757083434786,0.0002,4301.8,4301.7,10.25488887]
[1757083434972,0.0002,4301.8,4301.7,10.23164225]
[1757083435340,0.0002,4301.8,4301.7,9.43964225]
[1757083435535,2.32466234,4301.7,4301.6,0.004]
[1757083435770,1.6882,4301.7,4301.1,0.004]
[1757083435976,2.32492426,4301.3,4301.1,0.004]
[1757083436173,1.6882,4301.7,4301.1,0.004]
[1757083436472,0.4447,4301.2,4301.1,0.004]
[1757083436663,4.01313257,4301.2,4301.1,0.004]
[1757083438254,4.64692851,4301.2,4301.1,0.004]
[1757083440048,9.56892851,4301.2,4301.1,0.004]
[1757083440581,0.792,4301.1,4299.6,0.69895285]
[1757083440746,16.72234475,4300.5,4297.8,2.016]
[1757083440947,1.67223448,4300.4,4298.3,0.69895285]
[1757083441180,1.6882,4300.3,4298.4,0.02326447]
[1757083441484,2.32580675,4299.6,4298.6,2.32632852]
[1757083441651,2.32567541,4299.9,4298.7,4.92]
[1757083441847,1.2435,4300.3,4298.7,4.92]
[1757083442062,0.56905,4300.2,4298.7,4.92]
[1757083442249,2.3259351,4299.4,4298.7,4.92]
[1757083442472,2.32581003,4299.6,4298.7,4.92]
[1757083442872,0.4447,4300.1,4298.7,4.92]
[1757083443051,1.2435,4300.3,4298.7,7.2462751]
[1757083443251,1.2435,4300.3,4299.8,0.025]
[1757083443683,1.713,4300.6,4299.8,0.025]
[1757083443984,1.6882,4300.2,4299.8,0.025]
[1757083444285,1.6882,4300.2,4297.9,2.32671769]
[1757083444286,2.32601073,4299.3,4297.9,2.32671769]
[1757083444472,0.4447,4299.6,4297.9,0.69917276]
[1757083444677,0.61352,4299.6,4298.0,2.32662742]
[1757083444876,0.4447,4299.6,4298.2,2.32650873]
[1757083445072,0.4447,4299.6,4297.9,1.57604794]
[1757083445387,1.2435,4299.7,4297.8,0.029]
[1757083445388,6.6052,4299.5,4297.8,0.029]
[1757083445871,2.32635664,4298.6,4297.8,0.029]
[1757083446182,2.32590594,4299.4,4297.8,0.029]
[1757083446490,6.1605,4299.5,4297.8,0.029]
[1757083446667,2.32626375,4298.8,4297.8,0.029]
[1757083446987,0.4447,4299.1,4297.8,0.029]
[1757083447304,6.1605,4299.5,4297.9,0.02326717]
[1757083447462,0.4447,4299.4,4297.8,0.029]
[1757083447800,2.32601414,4299.2,4297.8,0.029]
[1757083447979,1.6882,4299.1,4297.8,0.029]
[1757083448180,2.32617646,4298.9,4297.8,0.029]
[1757083448360,2.32637749,4298.6,4297.8,0.029]
[1757083448565,2.08963765,4298.8,4297.8,0.029]
[1757083448761,2.32565082,4299.9,4297.8,0.029]
[1757083448762,1.0,4302.9,4297.8,0.029]
[1757083449102,1.6882,4299.7,4297.8,0.029]
[1757083450107,2.32579774,4299.6,4297.8,0.029]
[1757083450261,1.6882,4299.7,4297.8,0.029]
[1757083450466,1.6882,4299.7,4297.9,0.02326717]
[1757083450659,1.6882,4299.7,4298.1,2.32659791]
[1757083450891,2.32605813,4299.2,4298.2,2.79186328]
[1757083451186,1.6882,4299.7,4298.2,0.46533145]
[1757083451356,1.6882,4299.7,4297.8,0.05226771]
[1757083451559,1.6882,4299.7,4297.8,0.029]
[1757083451768,13.27887939,4299.4,4297.8,0.029]
[1757083451955,4.913,4299.4,4297.8,0.029]
[1757083452166,1.7202,4299.3,4297.8,0.029]
[1757083452355,2.32633881,4298.6,4297.8,0.029]
[1757083452559,0.66332,4299.2,4297.8,0.029]
[1757083452795,2.32624032,4298.8,4297.8,0.029]
[1757083452961,1.7202,4299.3,4297.9,0.02326717]
[1757083453162,2.32603931,4299.2,4297.8,0.029]
[1757083453393,1.7202,4299.3,4297.9,0.23557751]
[1757083453697,1.7202,4299.3,4297.8,0.029]
[1757083454198,0.116,4298.3,4297.9,2.34996885]
[1757083454362,0.116,4298.7,4298.0,0.116]
[1757083454568,0.116,4298.7,4297.8,0.029]
[1757083454569,2.62472257,4298.1,4297.8,0.029]
[1757083454892,2.32671769,4297.9,4297.8,0.029]
[1757083455392,0.4708,4298.3,4297.8,0.029]
[1757083456376,0.4708,4298.2,4297.8,0.029]
[1757083456572,2.32642297,4298.5,4297.8,0.029]
[1757083456774,0.4708,4298.8,4297.8,0.029]
[1757083456974,0.4708,4298.8,4297.8,2.35577109]
[1757083457338,0.4708,4299.3,4298.3,2.32645268]
[1757083457596,0.4708,4299.3,4298.0,3.0]
[1757083457597,2.32593907,4299.4,4298.4,2.32644602]
[1757083457769,1.2494,4299.6,4298.0,3.0]
[1757083457970,1.2494,4299.6,4298.1,0.47646609]
[1757083458482,2.79662291,4299.6,4298.6,2.32633851]
[1757083458668,0.4708,4299.6,4298.6,3.53263385]
[1757083458870,0.4708,4299.6,4298.6,2.85896494]
[1757083459166,0.4708,4299.6,4298.6,10.76695408]
[1757083459394,0.4708,4299.6,4298.6,10.7669562]
[1757083459591,1.2494,4299.7,4298.6,10.7669669]
[1757083459798,1.2494,4299.7,4298.8,5.3261903]
[1757083460110,3.57476935,4300.4,4298.9,2.32614126]
[1757083460276,1.2494,4300.4,4298.7,4.07669669]
[1757083460607,2.3253068,4300.6,4299.5,2.32580881]
[1757083460812,1.7202,4300.5,4298.7,1.95427714]
[1757083460968,0.4708,4300.4,4298.7,1.25536012]
[1757083461197,2.32568816,4299.9,4298.9,3.0]
[1757083461398,2.79624095,4300.3,4299.0,2.32611765]
[1757083461619,2.32567306,4299.9,4298.6,0.53263385]
[1757083461807,1.2494,4300.5,4298.2,3.3991]
[1757083461808,2.32552731,4300.1,4298.5,4.905]
[1757083461994,3.748,4300.5,4298.6,3.0]
[1757083461995,2.32597022,4299.3,4298.6,3.0]
[1757083462352,0.47,4299.6,4298.7,0.02326284]
[1757083462632,0.47,4299.6,4298.2,1.88497989]
[1757083462829,1.2494,4299.5,4298.2,1.88497989]
[1757083463203,1.37434,4299.5,4298.2,1.88497989]
[1757083463523,1.714,4300.4,4298.3,5.32649856]
[1757083463736,1.2494,4300.1,4298.4,2.32644705]
[1757083463891,1.2494,4300.1,4298.7,2.32626248]
[1757083464096,1.2494,4300.0,4297.5,0.69921187]
[1757083464296,0.12494,4299.9,4297.9,3.02326717]
[1757083464530,2.32590926,4299.4,4297.9,3.20091558]
[1757083464855,0.4708,4299.8,4298.4,2.32642899]
[1757083464856,0.116,4298.8,4298.4,2.32642899]
[1757083465032,0.116,4298.8,4298.5,3.0]
[1757083465235,1.7202,4298.7,4298.1,0.116]
[1757083465399,0.4708,4298.7,4297.9,2.50435946]
[1757083465736,1.2494,4299.3,4297.9,1.27622263]
[1757083465918,0.4708,4298.7,4297.8,0.029]
[1757083466336,1.2494,4298.8,4297.8,3.029]
[1757083466498,2.32612463,4299.0,4297.8,3.029]
[1757083466499,2.32606824,4299.1,4297.8,5.35573946]
[1757083466695,2.32624045,4298.8,4297.8,5.35573946]
[1757083466930,2.32623823,4298.8,4297.9,4.9]
[1757083467130,0.4708,4299.9,4298.0,3.02326663]
[1757083467353,0.4708,4300.4,4298.5,0.792]
[1757083467494,0.4708,4301.1,4298.9,0.792]
[1757083467692,0.4708,4301.1,4299.8,2.32565508]
[1757083467896,1.2494,4301.5,4300.2,2.32546871]
[1757083468136,1.2494,4301.5,4299.9,7.899]
[1757083468336,0.4718,4301.6,4300.6,2.32525694]
[1757083468505,0.4718,4301.6,4300.0,3.02325581]
[1757083468506,0.001,4301.6,4300.3,3.0]
[1757083468716,1.7202,4300.9,4298.7,2.168]
[1757083469016,2.32568728,4299.9,4298.6,6.37378492]
[1757083469337,0.4708,4300.4,4298.6,3.37378492]
[1757083469512,1.7202,4300.3,4298.6,8.27078492]
[1757083469717,1.7202,4300.2,4299.2,0.09320088]
[1757083470306,1.7202,4300.2,4298.6,1.65978492]
[1757083470508,2.32597651,4299.3,4298.6,4.65978492]
[1757083470955,2.32588772,4299.5,4298.6,4.65978492]
[1757083471243,2.32587355,4299.5,4298.6,4.65978492]
[1757083471539,2.32599585,4299.3,4298.6,4.65978492]
[1757083471703,0.4708,4299.9,4298.6,4.65978492]
[1757083471906,0.29683766,4299.8,4298.6,4.65978492]
[1757083472102,0.4708,4299.9,4298.6,4.65978492]
[1757083472537,0.4708,4299.9,4298.6,3.0]
[1757083472839,2.32594924,4299.4,4298.3,2.32646384]
[1757083473036,2.32615184,4299.0,4298.3,3.0]
[1757083473236,0.4708,4299.4,4298.2,3.0]
[1757083473712,0.4708,4299.4,4298.2,5.32653911]
[1757083473905,0.64282,4299.4,4298.1,0.69918743]
[1757083474107,1.7202,4299.3,4297.9,4.893]
[1757083474325,1.7202,4299.3,4297.8,0.029]
[1757083474530,1.7202,4299.3,4297.9,7.893]
[1757083474734,2.32626116,4298.8,4298.0,3.004]
[1757083475038,1.7202,4299.3,4298.0,3.004]
[1757083475039,2.32639213,4298.6,4298.0,3.004]
[1757083475336,0.116,4298.6,4298.0,4.896]
[1757083475543,0.116,4298.6,4298.0,0.004]
[1757083475832,0.116,4298.6,4298.0,4.896]
[1757083476037,0.4708,4298.8,4298.0,0.004]
[1757083476814,0.116,4298.2,4298.0,0.004]
[1757083477038,2.3261683,4299.0,4298.0,0.004]
[1757083477210,0.116,4298.4,4298.0,0.004]
[1757083477607,0.4708,4298.3,4298.0,0.004]
[1757083477838,0.116,4298.1,4298.0,0.004]
[1757083478541,0.116,4298.3,4298.0,0.004]
[1757083478750,0.116,4298.3,4298.0,3.004]
[1757083479114,0.2965,4298.1,4298.0,0.004]
[1757083479315,0.51417,4298.1,4297.5,0.004]
[1757083479657,1.7642,4298.0,4295.8,0.025]
[1757083479816,4.888,4297.9,4295.8,0.025]
[1757083480012,0.2965,4297.4,4296.2,2.44362792]
[1757083480215,4.888,4297.9,4296.2,2.44362792]
[1757083480216,2.32687575,4297.7,4296.4,2.32751879]
[1757083480448,4.38768841,4297.4,4296.2,0.116]
[1757083481642,4.09118841,4297.4,4296.1,1.65978492]
[1757083482544,2.32720502,4297.0,4296.1,1.65978492]
[1757083482742,0.792,4296.2,4295.8,0.025]
[1757083483044,2.32780092,4295.9,4295.8,0.025]
[1757083483218,7.75755027,4295.9,4295.8,0.025]
[1757083483417,9.52175027,4295.9,4295.8,0.025]
[1757083484946,9.52175027,4295.9,4295.8,1e-08]
[1757083486355,10.31375027,4295.9,4295.8,1e-08]
[1757083487256,3.11985511,4295.8,4293.8,1.69362255]